Workbook

Sheet Notas
D1: CALCULADORAS DE ABONADO | I1: v6b4
D2: www.acuariofiliamadrid.org | I2: (c) carlosterre, 2014
B5: Hojas | D5: Descripción
B7: Notas | D7: Esta hoja con ayuda e indicaciones básicas.
B9: Calculador de Disoluciones | D9: ¿Cuánta sal necesito para crear una disolución NPK para mi tanque? Esta calculadora permite calcular la disolución para un objetivo, la dosis, y además "perfilarla" en una base de datos para reutilizarla (ver más adelante el calculador de dosis y el combinador). Esta hoja contiene también la base de datos -lista- de disoluciones creadas.
B11: Calculador de Dosis | D11: ¿Cuál sería la dosis de una disolución existente si la quiero usar para otro tanque u objetivo? Esta calculadora permite calcular una dosis para un determinado objetivo nuevo o para un tanque diferente, seleccionando una disolución "perfilada" en la base de datos por su número en la lista.
B13: Calculador Manual | D13: ¿Cómo hago cálculos con una disolución antigua que ya tenía creada? Esta calculadora permite dar los datos de una disolución antigua ya existente y calcular sus aportes, dosis, etc. Además, permite "perfilarla" para copiarla en la base de datos para reutilizarla con otras calculadoras como el calculador de dosis o el combinador de disoluciones.
B15: Combinador de Disoluciones | D15: ¿Cómo combino disoluciones existentes para crear otra ajustada a proporciones diferentes? Esta calculadora permite calcular las proporciones de mezcla de disoluciones existentes en la base de datos para crear una nueva disolución (o dosis) que se ajuste a un objetivo de proporciones específicas. ¡Esta es la calculadora que te evita tener que tirar una disolución que ya no te sirve!
B17: Calculador de Dosis de Sales | D17: No uso disoluciones: ¿cómo calculo la cantidad de sal que tengo que añadir al tanque? Esta calculadora permite calcular la cantidad de sal que se debe añadir directamente al tanque (ie sin crear una disolución previamente) para lograr un objetivo de concentración NPK dado.
B19: Sales y Elementos | D19: Contiene dos tablas para definir nuevas sales y elementos nutritivos, de manera que el sistema de calculadoras es "escalable" y puede crecer si hay nuevas necesidades.
B21: Nutrientes | D21: Proporciona información general sobre los nutrientes, sus funciones y los síntomas de deficit en las plantas.
D23: AYUDA
B25: Leyenda | D25: Las celdas con información editable por el usuario están desprotegidas. El resto de celdas se mantienen visibles para facilitar la identificación de errores, pero están protegidas para evitar modificaciones. Los colores de las celdas identifican si se trata de datos de entrada, cálculos o resultados. A continuación se explican los códigos de colores.
B27: Datos de entrada | D27: Dato de entrada de usuario. Un valor que será normalmente diferente cada vez que se quiera hacer un cálculo (por ejemplo, la concentración objetivo de un nutriente).
B29: Parámetros | D29: Parámetro de usuario. Un valor que normalmente definirá una vez el usuario y no cambiará con frecuencia (por ejemplo, el volumen de la columna de agua).
B31: Calculos intermedios | D31: Un cálculo intermedio, que puede ser o no un resultado útil. En todo caso, los cálculos intermedios facilitan entender mejor los cálculos realizados.
B33: Resultados | D33: Un cálculo final que puede ser el resultado en la forma buscada.
B35: Títulos | D35: Una cabecera que explica qué es cada valor mostrado.
D37: COMO USAR ESTAS CALCULADORAS
D39: No hay peligro en usar las calculadoras… por lo que la mejor forma de aprender es jugar con ellas. Basta introducir los datos de entrada, y las calculadoras mostrarán los resultados y advertencias relevantes. Sí merece explicación la función de base de datos de disoluciones: Esta función permite guardar la información de las disoluciones que creamos para realizar cálculos rápidos sobre dosificación para diferentes tanques (por ejemplo, para un amigo) o para combinar disoluciones existentes para crear una disolución con objetivos totalmente distintos. Para utilizar esta función se debe copiar la línea que se crea como resultado en "Calculador de Disoluciones", "Calculador Manual" o "Combinador de Disoluciones" en la primera fila vacía que haya en la tabla XXXX de la hoja "Calculador de Disoluciones". A partir de ese momento, podremos hacer cálculos con esa disolución utilizando únicamente el número (el sistema nos recordará las características de la disolución y su fecha cuando la seleccionemos).
D41: COMO CREAR UNA DISOLUCIÓN
D43: Esta guía únicamente da los puntos más básicos para crear correctamente una disolución de abonado. Es un proceso muy sencillo que cualquiera puede seguir, pero se debe tener en cuenta lo siguiente: La disolución se calcula para un volumen "final", después de agregar las sales al agua. Tomar 1L de agua y añadir las sales resultará en una disolución mal calculada, pues el volumen de las sales resultará en un volumen mayor de disolución final. La forma correcta de proceder es tomar un recipiente, marcar en él volumen final deseado, disolver las sales necesarias en una cantidad menor de agua, y al final rellenar con agua hasta la marca de volumen final deseado. ¡Sencillo! Para disolver bien las sales es útil que la primera cantidad de agua (aproximadamente un 50%) esté caliente. De lo contrario podríamos tener una concentración de saturación y no lograr disolver toda la sal hasta rellenar al volumen final deseado, lo que haría el proceso más lento.
D44: Trabajar con disoluciones excesivamente concentradas no es recomendable por dos razones principales: 1) se dificulta muchísimo más el trabajo de disolver las sales; y 2) se aumenta el error de dosificación resultante de la imprecisión de la medida de la dosis. El volumen de dosis es ligeramente variable cuando se utilizan dosificadores con pulsador. El error será menor si para hacer un abonado utilizamos, por ejemplo, 10 pulsaciones de una disolución en lugar de 1 pulsación de otra disolución diez veces más concentrada (el error del primer abonado será 10 veces menor que para el segundo). La única ventaja de una disolución concentrada es que durará más pues las dosis necesarias serán menores. Se debe buscar, por tanto, un compromiso.
D46: COMO CONSERVAR UNA DISOLUCION
D48: Las sales habituales NPK no requieren cuidados especiales. Las disoluciones son de iones inorgánicos que además están en altas concentraciones que dificultan la proliferación de organismos. La luz no les afecta. Igualmente, no es necesaria la conservación en frío. Se debe tener en cuenta que la concentración de saturación desciende con la temperatura: una disolución que no precipita sales a temperatura ambiente sí puede precipitar si se introduce en la nevera. Esto no es generalizable a otros tipos de compuestos (como los quelatos que se usan para aportar hierro). Consulta en el foro si tu disolución no va a ser habitual.

Sheet Calculador de Disoluciones
C1: CALCULADORAS DE ABONADO | I1: (Volver a Notas)
C2: www.acuariofiliamadrid.org | I2: (c) carlosterre, 2014
AA3: Principios | AP3: Formulas | BE3: Disoluciones
A4: Calculador de Disoluciones de Abonado NPK | AA4: K | AP4: K2HPO4 | BE4: 1
AA5: N | AP5: K2SO4 | BE5: 2
B6: Volumen de la columna de agua | C6: 220 | D6: L | E6: Esta calculadora toma como datos: a) el volumen de la columna de agua sobre la que trabajar; b) el volumen de disolución que se quiere crear; c) el volumen de dosis que se quiere aditar para aportar el objetivo al tanque; d) las concentraciones iniciales en el tanque; y e) las concentraciones objetivo de ión nitrato (NO3), ión fosfato (PO4) y potasio (K) para el tanque. Como resultado proporciona la cantidad de cada sal para crear la disolución deseada. | AA6: NO3 | AP6: K3PO4 | BE6: 3
B7: Volumen de disolución | C7: 1000 | D7: mL ó cc | AA7: P | AP7: KH2PO4 | BE7: (en blanco)
B8: Volumen de dosis de disolución | C8: 60 | D8: mL | AA8: PO4 | AP8: KNO3 | BE8: 4
B9: Volumen por pulsación de dosificador | C9: 1.2 | D9: mL | AA9: (en blanco) | AP9: (en blanco)
B10: ="Pulsaciones de dosificador de "&TEXT(C9,"0.0")&"mL" -> Pulsaciones de dosificador de 1.2mL | C10: =C8/$C$9 -> 50 | D10: pulsaciones/dosis
B11: Número de dosis preparadas | C11: =C7/C8 -> 16.66666667
B13: Principios a aditar con la disolución | C13: NO3 | D13: PO4 | E13: K
B14: Nombre del principio | C14: =VLOOKUP(C$13,MasasPorFormula,2,FALSE) -> Nitrato ión | D14: =VLOOKUP(D$13,MasasPorFormula,2,FALSE) -> Fosfato ión | E14: =VLOOKUP(E$13,MasasPorFormula,2,FALSE) -> Potasio
B15: Concetración inicial en tanque (mg/L ó ppm)
B16: Objetivo en tanque (mg/L ó ppm) | E16: 13 | F16: ="Este objetivo se alcanzará añadiendo 1 dosis de "&TEXT($C$8,"0")&" mL de disolución al tanque de "&TEXT($C$6,"0")&" L de agua." -> Este objetivo se alcanzará añadiendo 1 dosis de 60 mL de disolución al tanque de 220 L de agua.
B17: Defecto en tanque (mg) | C17: =(C16-C15)*$C$6 -> 0 | D17: =(D16-D15)*$C$6 -> 0 | E17: =(E16-E15)*$C$6 -> 2860
B18: Concentración objetivo en disolución (mg/mL) | C18: =C17/$C$8 -> 0 | D18: =D17/$C$8 -> 0 | E18: =E17/$C$8 -> 47.66666667
B19: Masa de principio en disolución (g) | C19: =C18*$C$7/1000 -> 0 | D19: =D18*$C$7/1000 -> 0 | E19: =E18*$C$7/1000 -> 47.66666667
B21: Compuesto que aporta el elemento | C21: ="% de "&C$13 -> % de NO3 | D21: ="% de "&D$13 -> % de PO4 | E21: ="% de "&E$13 -> % de K | F21: Nombre del compuesto | G21: Masa teórica de compuesto en disolución (g) | H21: Masa efectiva de compuesto en disolución (g) | I21: Concentración de compuesto en disolución (mg/mL) | J21: Alerta de concentración
B22: KNO3 | C22: =IF(ISNA(VLOOKUP(C$13&" ("&$B22&")",PCMasaPorElementoYFormula,10,FALSE)),0,VLOOKUP(C$13&" ("&$B22&")",PCMasaPorElementoYFormula,10,FALSE)) -> 0.6132832591 | D22: 0 | E22: 0.3867167409 | F22: =VLOOKUP($B22,MasasPorFormula,2,FALSE) -> Nitrato potásico | G22: =MMULT(MINVERSE(TRANSPOSE($C$22:$E$24)),TRANSPOSE($C$19:$E$19)) -> 0 | H22: =MAX(0,G22) -> 0 | I22: =H22/$C$7*1000 -> 0 | J22: =IF(I22>VLOOKUP($B22,MasasPorFormula,4,FALSE),"¡Alerta! Aumenta la dosis de disolución.","") -> 
B23: KH2PO4 | C23: 0 | D23: 0.6978778126 | E23: 0.2873058213 | F23: =VLOOKUP($B23,MasasPorFormula,2,FALSE) -> Fosfato monopotásico | G23: 0 | H23: =MAX(0,G23) -> 0 | I23: =H23/$C$7*1000 -> 0 | J23: =IF(I23>VLOOKUP($B23,MasasPorFormula,4,FALSE),"¡Alerta! Aumenta la dosis de disolución.","") -> 
B24: K2SO4 | C24: 0 | D24: 0 | E24: 0.4487377983 | F24: =VLOOKUP($B24,MasasPorFormula,2,FALSE) -> Sulfato potásico | G24: 106.2238725 | H24: =MAX(0,G24) -> 106.2238725 | I24: =H24/$C$7*1000 -> 106.2238725 | J24: =IF(I24>VLOOKUP($B24,MasasPorFormula,4,FALSE),"¡Alerta! Aumenta la dosis de disolución.","") -> 
C26: =C$13 -> NO3 | D26: =D$13 -> PO4 | E26: =E$13 -> K
B27: Masa teórica de principio en disolución (g) -check- | C27: =SUMPRODUCT(C22:C24,$G22:$G24) -> 0 | D27: =SUMPRODUCT(D22:D24,$G22:$G24) -> 0 | E27: =SUMPRODUCT(E22:E24,$G22:$G24) -> 47.66666667
B28: Masa efectiva de principio en disolución (g) | C28: =SUMPRODUCT(C22:C24,$H22:$H24) -> 0 | D28: =SUMPRODUCT(D22:D24,$H22:$H24) -> 0 | E28: =SUMPRODUCT(E22:E24,$H22:$H24) -> 47.66666667
B29: Concentración efectiva en disolución (mg/mL) | C29: =C28*1000/$C$7 -> 0 | D29: =D28*1000/$C$7 -> 0 | E29: =E28*1000/$C$7 -> 47.66666667
B30: Concentración AÑADIDA al tanque tras 1 dosis (mg/L) | C30: =C29*$C$8/$C$6 -> 0 | D30: =D29*$C$8/$C$6 -> 0 | E30: =E29*$C$8/$C$6 -> 13
B31: Concentración FINAL en tanque tras 1 dosis (mg/L) | C31: =C29*$C$8/$C$6+C$15 -> 0 | D31: =D29*$C$8/$C$6+D$15 -> 0 | E31: =E29*$C$8/$C$6+E$15 -> 13
B32: Alerta de exceso en tanque respecto de objetivo | C32: =IF(C31>C16,"¡Alerta! Exceso de "&TEXT(C31-C16,"0.0")&" mg/L de "&C13,"") ->  | D32: =IF(D31>D16,"¡Alerta! Exceso de "&TEXT(D31-D16,"0.0")&" mg/L de "&D13,"") ->  | E32: =IF(E31>E16,"¡Alerta! Exceso de "&TEXT(E31-E16,"0.0")&" mg/L de "&E13,"") ->  | F32: =IF(C32&D32&E32="","","Las sales seleccionadas proporcionan un exceso respecto del objetivo final deseado en el tanque.") -> 
A34: Nueva Disolución (esta línea sirve para añadir al registro de disoluciones "DisolucionesPorNumero" copiando y pegando como valores)
A35: =MAX(OFFSET(MarkerDisolucionesPorNumeroTopLeft,1,0,50))+1 -> 5 | B35: ="Disolución NPK ( "&TEXT(C30,"0.0")&" / "&TEXT(D30,"0.0")&" / "&TEXT(E30,"0.0")&" ) para "&$C$6&"L de agua y dosis de "&TEXT($C$8,"0.0")&"mL" -> Disolución NPK ( 0.0 / 0.0 / 13.0 ) para 220L de agua y dosis de 60.0mL | C35: =DAY(TODAY())&"-"&MONTH(TODAY())&"-"&YEAR(TODAY()) -> 3-9-2014 | D35: =C29 -> 0 | E35: =D29 -> 0 | F35: =E29 -> 47.66666667 | G35: 0 | H35: =C6 -> 220 | I35: =C8 -> 60 | J35: =IF(H22>0,TEXT(H22,"0.0")&"g "&B22&", ","")&IF(H23>0,TEXT(H23,"0.0")&"g "&B23&", ","")&IF(H24>0,TEXT(H24,"0.0")&"g "&B24&", ","")&"en "&TEXT($C$7,"0")&"mL de agua" -> 106.2g K2SO4, en 1000mL de agua
A40: DisolucionesPorNumero
A41: 1 | B41: 2 | C41: 3 | D41: 4 | E41: 5 | F41: 6 | G41: 7 | H41: 8 | I41: 9 | J41: 10
A42: # | B42: Descripción | C42: Fecha | D42: Concentración NO3 (mg/mL) | E42: Concentración PO4 (mg/mL) | F42: Concentración K (mg/mL) | G42: Concentración Fe (mg/mL) | H42: Volumen tanque de referencia (L) | I42: Volumen dosis de referencia (mL) | J42: Composición (resumen)
A43: 1 | B43: Disolución N ( 10.0 / 0.0 / 6.3 ) para 220L de agua y dosis de 12.0mL | C43: 19-04-2014 | D43: 183.3333333 | E43: 0 | F43: 115.6041162 | G43: 0 | H43: 220 | I43: 12 | J43: 298.9g KNO3, en 1000mL de agua
A44: 2 | B44: Disolución K ( 0.0 / 0.0 / 10.0 ) para 220L de agua y dosis de 49.0mL | C44: 19-04-2014 | D44: 0 | E44: 0 | F44: 44.87377983 | G44: 0 | H44: 220 | I44: 49.02640268 | J44: 100.0g K2SO4, en 1000mL de agua
A45: 3 | B45: Disolución NPK ( 5.0 / 0.5 / 5.0 ) para 110L de agua y dosis de 10.0mL | C45: 19-04-2014 | D45: 55 | E45: 5.5 | F45: 55 | G45: 0 | H45: 110 | I45: 10 | J45: 89.7g KNO3, 7.9g KH2PO4, 40.2g K2SO4, en 1000mL de agua
A46: 4 | B46: Disolución NPK ( 0.0 / 0.0 / 13.0 ) para 220L de agua y dosis de 60.0mL | C46: 19-7-2014 | D46: 0 | E46: 0 | F46: 47.66666667 | G46: 0 | H46: 220 | I46: 60 | J46: 106.2g K2SO4, en 1000mL de agua
B93: <eot>

Sheet Calculador de Dosis
C1: CALCULADORAS DE ABONADO | I1: (Volver a Notas)
C2: www.acuariofiliamadrid.org | I2: (c) carlosterre, 2014
AA3: Principios | AC3: Formulas | AE3: Disoluciones
A4: Calculador de Dosis para Disoluciones en Base de Datos | AA4: =IF('Calculador de Disoluciones'!AA4="","",'Calculador de Disoluciones'!AA4) -> K | AC4: =IF('Calculador de Disoluciones'!AP4="","",'Calculador de Disoluciones'!AP4) -> K2HPO4 | AE4: =IF('Calculador de Disoluciones'!BE4="","",'Calculador de Disoluciones'!BE4) -> 1
AA5: =IF('Calculador de Disoluciones'!AA5="","",'Calculador de Disoluciones'!AA5) -> N | AC5: =IF('Calculador de Disoluciones'!AP5="","",'Calculador de Disoluciones'!AP5) -> K2SO4 | AE5: =IF('Calculador de Disoluciones'!BE5="","",'Calculador de Disoluciones'!BE5) -> 2
B6: Volumen de la columna de agua | C6: 220 | D6: L | AA6: =IF('Calculador de Disoluciones'!AA6="","",'Calculador de Disoluciones'!AA6) -> NO3 | AC6: =IF('Calculador de Disoluciones'!AP6="","",'Calculador de Disoluciones'!AP6) -> K3PO4 | AE6: =IF('Calculador de Disoluciones'!BE6="","",'Calculador de Disoluciones'!BE6) -> 3
B7: Volumen por pulsación de dosificador | C7: 1.2 | D7: mL | AA7: =IF('Calculador de Disoluciones'!AA7="","",'Calculador de Disoluciones'!AA7) -> P | AC7: =IF('Calculador de Disoluciones'!AP7="","",'Calculador de Disoluciones'!AP7) -> KH2PO4 | AE7: =IF('Calculador de Disoluciones'!BE7="","",'Calculador de Disoluciones'!BE7) -> (en blanco)
B8: Disolución seleccionada | C8: 2 | AA8: =IF('Calculador de Disoluciones'!AA8="","",'Calculador de Disoluciones'!AA8) -> PO4 | AC8: =IF('Calculador de Disoluciones'!AP8="","",'Calculador de Disoluciones'!AP8) -> KNO3 | AE8: =IF('Calculador de Disoluciones'!BE8="","",'Calculador de Disoluciones'!BE8) -> 4
A9: 3 | B9: =VLOOKUP("#",DisolucionesPorNumero,$A9,FALSE) -> Fecha | C9: =VLOOKUP($C$8,DisolucionesPorNumero,$A9,FALSE) -> 19-04-2014 | AA9: =IF('Calculador de Disoluciones'!AA9="","",'Calculador de Disoluciones'!AA9) -> (en blanco) | AC9: =IF('Calculador de Disoluciones'!AP9="","",'Calculador de Disoluciones'!AP9) -> (en blanco) | AE9: =IF('Calculador de Disoluciones'!BE9="","",'Calculador de Disoluciones'!BE9) -> 
A10: 2 | B10: Descripción | C10: Disolución K ( 0.0 / 0.0 / 10.0 ) para 220L de agua y dosis de 49.0mL | AA10: =IF('Calculador de Disoluciones'!AA10="","",'Calculador de Disoluciones'!AA10) ->  | AC10: =IF('Calculador de Disoluciones'!AP10="","",'Calculador de Disoluciones'!AP10) ->  | AE10: =IF('Calculador de Disoluciones'!BE10="","",'Calculador de Disoluciones'!BE10) -> 
A11: 10 | B11: Composición (resumen) | C11: 100.0g K2SO4, en 1000mL de agua
A12: 4 | B12: Concentración NO3 (mg/mL) | C12: 0
A13: 5 | B13: Concentración PO4 (mg/mL) | C13: 0
A14: 6 | B14: Concentración K (mg/mL) | C14: 44.87377983
A15: 7 | B15: Concentración Fe (mg/mL) | C15: 0
B16: Criterio de ajuste de dosis | C16: K | D16: =IF(ISERROR(MATCH("Objetivo inalcanzable",$I$21:$I$24,0)),"","Alguno de los objetivos es inalcanzable con esta disolución. Prueba el combinador de disoluciones.") -> 
B17: Volumen de dosis de disolución | C17: =OFFSET($F$20,MATCH(C16,$B$21:$B$24,0),0) -> 63.73432349 | D17: =IF($C$17="Imposible","Debes seleccionar un criterio de ajuste diferente. No es posible alcanzar el objetivo para el criterio seleccionado.","mL") -> mL
B18: ="Pulsaciones de dosificador de "&TEXT(C7,"0.0")&"mL" -> Pulsaciones de dosificador de 1.2mL | C18: =IF(C17="Imposible","",C17/$C$7) -> 53.11193624 | D18: pulsaciones/dosis
C20: Concetración inicial en tanque (mg/L ó ppm) | D20: Objetivo en tanque (mg/L ó ppm) | E20: Defecto en tanque (mg) | F20: ="Dosis requerida de la disolución #"&$C$8&" para cada criterio (mL)" -> Dosis requerida de la disolución #2 para cada criterio (mL) | G20: ="Concentración AÑADIDA en tanque por dosis de "&TEXT($C$17,"0.0")&"mL de la disolución #"&$C$8&" (mg/L ó ppm)" -> Concentración AÑADIDA en tanque por dosis de 63.7mL de la disolución #2 (mg/L ó ppm) | H20: ="Concentración FINAL en tanque por dosis de "&TEXT($C$17,"0.0")&"mL de la disolución #"&$C$8&" (mg/L ó ppm)" -> Concentración FINAL en tanque por dosis de 63.7mL de la disolución #2 (mg/L ó ppm) | I20: ="Alerta de objetivo para la dosis de "&TEXT($C$17,"0.0")&"mL de la disolución #"&$C$8 -> Alerta de objetivo para la dosis de 63.7mL de la disolución #2
B21: NO3 | E21: =(D21-C21)*$C$6 -> 0 | F21: =IF(C12=0,"Imposible",E21/C12) -> Imposible | G21: =IF($C$17="Imposible","",C12*$C$17/$C$6) -> 0 | H21: =IF($C$17="Imposible","",G21+C21) -> 0 | I21: =IF($C$17="Imposible","",IF(AND(ABS(G21-(D21-C21))>0.1,F21<>$C$17,D21>0),"Objetivo inalcanzable","")) -> 
B22: PO4 | E22: =(D22-C22)*$C$6 -> 0 | F22: =IF(C13=0,"Imposible",E22/C13) -> Imposible | G22: =IF($C$17="Imposible","",C13*$C$17/$C$6) -> 0 | H22: =IF($C$17="Imposible","",G22+C22) -> 0 | I22: =IF($C$17="Imposible","",IF(AND(ABS(G22-(D22-C22))>0.1,F22<>$C$17,D22>0),"Objetivo inalcanzable","")) -> 
B23: K | D23: 13 | E23: =(D23-C23)*$C$6 -> 2860 | F23: =IF(C14=0,"Imposible",E23/C14) -> 63.73432349 | G23: =IF($C$17="Imposible","",C14*$C$17/$C$6) -> 13 | H23: =IF($C$17="Imposible","",G23+C23) -> 13 | I23: =IF($C$17="Imposible","",IF(AND(ABS(G23-(D23-C23))>0.1,F23<>$C$17,D23>0),"Objetivo inalcanzable","")) -> 
B24: Fe | E24: =(D24-C24)*$C$6 -> 0 | F24: =IF(C15=0,"Imposible",E24/C15) -> Imposible | G24: =IF($C$17="Imposible","",C15*$C$17/$C$6) -> 0 | H24: =IF($C$17="Imposible","",G24+C24) -> 0 | I24: =IF($C$17="Imposible","",IF(AND(ABS(G24-(D24-C24))>0.1,F24<>$C$17,D24>0),"Objetivo inalcanzable","")) -> 
B30: Esta calculadora toma una disolución existente y ajusta la dosis para un determinado objetivo N/P/K (notar que puede ser imposible alcanzar determinadas proporciones si la disolución ha sido diseñada con otras proporciones objetivo diferentes). El uso habitual de esta herramienta será para ajustar la dosis a una columna de agua diferente, manteniendo las proporciones de la disolución. O para cambiar de maneral proporcional la cantidad de N/P/K que se quiere añadir.

Sheet Calculador Manual
C1: CALCULADORAS DE ABONADO | I1: (Volver a Notas)
C2: www.acuariofiliamadrid.org | I2: (c) carlosterre, 2014
AA3: Principios | AC3: Formulas | AE3: Disoluciones
A4: Calculador de Dosis para Disolución NPK Existente | AA4: =IF('Calculador de Disoluciones'!AA4="","",'Calculador de Disoluciones'!AA4) -> K | AC4: =IF('Calculador de Disoluciones'!AP4="","",'Calculador de Disoluciones'!AP4) -> K2HPO4 | AE4: =IF('Calculador de Disoluciones'!BE4="","",'Calculador de Disoluciones'!BE4) -> 1
AA5: =IF('Calculador de Disoluciones'!AA5="","",'Calculador de Disoluciones'!AA5) -> N | AC5: =IF('Calculador de Disoluciones'!AP5="","",'Calculador de Disoluciones'!AP5) -> K2SO4 | AE5: =IF('Calculador de Disoluciones'!BE5="","",'Calculador de Disoluciones'!BE5) -> 2
B6: Volumen de la columna de agua | C6: 200 | D6: L | E6: Esta calculadora es para disoluciones ya creadas, para poder incorporarlas a la base de datos y para determinar la dosis necesaria para lograr una concentración objetivo en el tanque dado un criterio (notar que como la disolución viene dada, la dosis se calcula sobre un sólo criterio (NO3, PO4 ó K) pues al estar ya creada la disolución las proporciones de cada uno vienen dadas. Esta calculadora toma como datos: a) el volumen de la columna de agua sobre la que trabajar; b) el volumen de disolución que se ha creado; c) el criterio para el cálculo de la dosis que proporciona la concentración objetivo; d) las concentraciones iniciales en el tanque; y e) las concentraciones objetivo de ión nitrato (NO3), ión fosfato (PO4) y potasio (K) para el tanque. Como resultado proporciona la dosis de disolución que proporciona la concentración objetivo para el criterio elegido, e informa de los desajustes de las otras concentraciones si existen. | AA6: =IF('Calculador de Disoluciones'!AA6="","",'Calculador de Disoluciones'!AA6) -> NO3 | AC6: =IF('Calculador de Disoluciones'!AP6="","",'Calculador de Disoluciones'!AP6) -> K3PO4 | AE6: =IF('Calculador de Disoluciones'!BE6="","",'Calculador de Disoluciones'!BE6) -> 3
B7: Volumen de disolución | C7: 500 | D7: mL ó cc | AA7: =IF('Calculador de Disoluciones'!AA7="","",'Calculador de Disoluciones'!AA7) -> P | AC7: =IF('Calculador de Disoluciones'!AP7="","",'Calculador de Disoluciones'!AP7) -> KH2PO4 | AE7: =IF('Calculador de Disoluciones'!BE7="","",'Calculador de Disoluciones'!BE7) -> (en blanco)
B8: Criterio de ajuste de dosis | C8: NO3 | AA8: =IF('Calculador de Disoluciones'!AA8="","",'Calculador de Disoluciones'!AA8) -> PO4 | AC8: =IF('Calculador de Disoluciones'!AP8="","",'Calculador de Disoluciones'!AP8) -> KNO3 | AE8: =IF('Calculador de Disoluciones'!BE8="","",'Calculador de Disoluciones'!BE8) -> 4
B9: Volumen por pulsación de dosificador | C9: 1.2 | D9: mL | AA9: =IF('Calculador de Disoluciones'!AA9="","",'Calculador de Disoluciones'!AA9) -> (en blanco) | AC9: =IF('Calculador de Disoluciones'!AP9="","",'Calculador de Disoluciones'!AP9) -> (en blanco) | AE9: =IF('Calculador de Disoluciones'!BE9="","",'Calculador de Disoluciones'!BE9) -> 
B10: DOSIS: Volumen de dosis de disolución | C10: =OFFSET($B$21,0,MATCH($C$8,$C$15:$E$15,0)) -> 2.563786017 | D10: mL | AA10: =IF('Calculador de Disoluciones'!AA10="","",'Calculador de Disoluciones'!AA10) ->  | AC10: =IF('Calculador de Disoluciones'!AP10="","",'Calculador de Disoluciones'!AP10) ->  | AE10: =IF('Calculador de Disoluciones'!BE10="","",'Calculador de Disoluciones'!BE10) -> 
B11: ="DOSIS: Pulsaciones de dosificador de "&TEXT(C9,"0.0")&"mL" -> DOSIS: Pulsaciones de dosificador de 1.2mL | C11: =C10/$C$9 -> 2.136488347 | D11: pulsaciones/dosis
B12: Número de dosis preparadas | C12: =C7/C10 -> 195.0240764 | D12: dosis
B14: OBJETIVOS | C14: =IF(C15=$C$8,"Selected","") -> Selected | D14: =IF(D15=$C$8,"Selected","") ->  | E14: =IF(E15=$C$8,"Selected","") -> 
B15: Nutrientes objetivo para la disolución | C15: NO3 | D15: PO4 | E15: K
B16: Nombre del principio | C16: =VLOOKUP(C$15,MasasPorFormula,2,FALSE) -> Nitrato ión | D16: =VLOOKUP(D$15,MasasPorFormula,2,FALSE) -> Fosfato ión | E16: =VLOOKUP(E$15,MasasPorFormula,2,FALSE) -> Potasio
B17: Concetración inicial en tanque (mg/L ó ppm) | C17: 0 | D17: 0 | E17: 0
B18: Objetivo en tanque (mg/L ó ppm) | C18: 5 | D18: 0.1 | E18: 3 | F18: ="Este objetivo se deberá alcanzar en el tanque de "&TEXT($C$6,"0")&" L añadiendo 1 dosis de disolución." -> Este objetivo se deberá alcanzar en el tanque de 200 L añadiendo 1 dosis de disolución.
B19: Defecto en tanque (mg/L) | C19: =C18-C17 -> 5 | D19: =D18-D17 -> 0.1 | E19: =E18-E17 -> 3 | F19: ="Este objetivo se añadirá con 1 dosis de disolución al tanque de "&TEXT($C$6,"0")&" L." -> Este objetivo se añadirá con 1 dosis de disolución al tanque de 200 L.
B20: Defecto en tanque (mg) | C20: =(C18-C17)*$C$6 -> 1000 | D20: =(D18-D17)*$C$6 -> 20 | E20: =(E18-E17)*$C$6 -> 600
B21: Volumen de disolución para cubrir defecto (mL) | C21: =C20/C30 -> 2.563786017 | D21: =D20/D30 -> 0.5117555691 | E21: =E20/E30 -> 1.599475805
B23: Compuestos que aportan los nutrientes | C23: ="% de "&C$15 -> % de NO3 | D23: ="% de "&D$15 -> % de PO4 | E23: ="% de "&E$15 -> % de K | F23: Nombre del compuesto | G23: Masa efectiva de compuesto en disolución (g) | H23: Concentración de compuesto en disolución (mg/mL) | I23: Alerta de concentración
B24: KNO3 | C24: =IF(ISNA(VLOOKUP(C$15&" ("&$B24&")",PCMasaPorElementoYFormula,10,FALSE)),0,VLOOKUP(C$15&" ("&$B24&")",PCMasaPorElementoYFormula,10,FALSE)) -> 0.6132832591 | D24: 0 | E24: 0.3867167409 | F24: =VLOOKUP($B24,MasasPorFormula,2,FALSE) -> Nitrato potásico | G24: 318 | H24: =G24/$C$7*1000 -> 636 | I24: =IF(H24>VLOOKUP($B24,MasasPorFormula,4,FALSE),"¡Alerta! Aumenta la dosis de disolución.","") -> ¡Alerta! Aumenta la dosis de disolución.
B25: KH2PO4 | C25: 0 | D25: 0.6978778126 | E25: 0.2873058213 | F25: =VLOOKUP($B25,MasasPorFormula,2,FALSE) -> Fosfato monopotásico | G25: 28 | H25: =G25/$C$7*1000 -> 56 | I25: =IF(H25>VLOOKUP($B25,MasasPorFormula,4,FALSE),"¡Alerta! Aumenta la dosis de disolución.","") -> 
B26: K2SO4 | C26: 0 | D26: 0 | E26: 0.4487377983 | F26: =VLOOKUP($B26,MasasPorFormula,2,FALSE) -> Sulfato potásico | G26: 126 | H26: =G26/$C$7*1000 -> 252 | I26: =IF(H26>VLOOKUP($B26,MasasPorFormula,4,FALSE),"¡Alerta! Aumenta la dosis de disolución.","") -> ¡Alerta! Aumenta la dosis de disolución.
C28: =C$15 -> NO3 | D28: =D$15 -> PO4 | E28: =E$15 -> K
B29: Masa efectiva de principio en disolución (g) | C29: =SUMPRODUCT(C24:C26,$G24:$G26) -> 195.0240764 | D29: =SUMPRODUCT(D24:D26,$G24:$G26) -> 19.54057875 | E29: =SUMPRODUCT(E24:E26,$G24:$G26) -> 187.5614492
B30: Concentración en disolución (mg/mL) | C30: =C29*1000/$C$7 -> 390.0481528 | D30: =D29*1000/$C$7 -> 39.0811575 | E30: =E29*1000/$C$7 -> 375.1228984
B31: Concentración AÑADIDA al tanque tras 1 dosis (mg/L) | C31: =C30*$C$10/$C$6 -> 5 | D31: =D30*$C$10/$C$6 -> 0.5009786257 | E31: =E30*$C$10/$C$6 -> 4.808674208
B32: Concentración FINAL en tanque tras 1 dosis (mg/L) | C32: =C30*$C$10/$C$6+C$17 -> 5 | D32: =D30*$C$10/$C$6+D$17 -> 0.5009786257 | E32: =E30*$C$10/$C$6+E$17 -> 4.808674208
B33: Alerta de exceso en tanque respecto de objetivo | C33: =IF(C32>C18,"¡Alerta! Exceso de "&TEXT(C32-C18,"0.0")&" mg/L de "&C15,"") ->  | D33: =IF(D32>D18,"¡Alerta! Exceso de "&TEXT(D32-D18,"0.0")&" mg/L de "&D15,"") -> ¡Alerta! Exceso de 0.4 mg/L de PO4 | E33: =IF(E32>E18,"¡Alerta! Exceso de "&TEXT(E32-E18,"0.0")&" mg/L de "&E15,"") -> ¡Alerta! Exceso de 1.8 mg/L de K | F33: =IF(C33&D33&E33="","","Las sales seleccionadas proporcionan un exceso respecto del objetivo.") -> Las sales seleccionadas proporcionan un exceso respecto del objetivo.
A35: Nueva Disolución (esta línea sirve para añadir al registro de disoluciones copiando y pegando como valores)
A36: =MAX(OFFSET(MarkerDisolucionesPorNumeroTopLeft,1,0,50))+1 -> 5 | B36: ="Disolución NPK ( "&TEXT(C31,"0.0")&" / "&TEXT(D31,"0.0")&" / "&TEXT(E31,"0.0")&" ) para "&$C$6&"L de agua y dosis de "&TEXT($C$8,"0.0")&"mL" -> Disolución NPK ( 5.0 / 0.5 / 4.8 ) para 200L de agua y dosis de NO3mL | C36: =DAY(TODAY())&"-"&MONTH(TODAY())&"-"&YEAR(TODAY()) -> 3-9-2014 | D36: =C30 -> 390.0481528 | E36: =D30 -> 39.0811575 | F36: =E30 -> 375.1228984 | G36: 0 | H36: =C6 -> 200 | I36: =C10 -> 2.563786017 | J36: =IF(H24>0,TEXT(H24,"0.0")&"g "&B24&", ","")&IF(H25>0,TEXT(H25,"0.0")&"g "&B25&", ","")&IF(H26>0,TEXT(H26,"0.0")&"g "&B26&", ","")&"en "&TEXT($C$7,"0")&"mL de agua" -> 636.0g KNO3, 56.0g KH2PO4, 252.0g K2SO4, en 500mL de agua
A37: # | B37: Descripción | C37: Fecha | D37: Concentración NO3 (mg/mL) | E37: Concentración PO4 (mg/mL) | F37: Concentración K (mg/mL) | G37: Concentración Fe (mg/mL) | H37: Volumen tanque de referencia (L) | I37: Volumen dosis de referencia (mL) | J37: Composición (resumen)

Sheet Combinador de Disoluciones
C1: CALCULADORAS DE ABONADO | I1: (Volver a Notas)
C2: www.acuariofiliamadrid.org | I2: (c) carlosterre, 2014
AA3: Principios | AC3: Formulas | AE3: Disoluciones
A4: Combinador de Disoluciones en Base de Datos | AA4: =IF('Calculador de Disoluciones'!AA4="","",'Calculador de Disoluciones'!AA4) -> K | AC4: =IF('Calculador de Disoluciones'!AP4="","",'Calculador de Disoluciones'!AP4) -> K2HPO4 | AE4: =IF('Calculador de Disoluciones'!BE4="","",'Calculador de Disoluciones'!BE4) -> 1
AA5: =IF('Calculador de Disoluciones'!AA5="","",'Calculador de Disoluciones'!AA5) -> N | AC5: =IF('Calculador de Disoluciones'!AP5="","",'Calculador de Disoluciones'!AP5) -> K2SO4 | AE5: =IF('Calculador de Disoluciones'!BE5="","",'Calculador de Disoluciones'!BE5) -> 2
B6: Volumen de la columna de agua | C6: 220 | D6: L | AA6: =IF('Calculador de Disoluciones'!AA6="","",'Calculador de Disoluciones'!AA6) -> NO3 | AC6: =IF('Calculador de Disoluciones'!AP6="","",'Calculador de Disoluciones'!AP6) -> K3PO4 | AE6: =IF('Calculador de Disoluciones'!BE6="","",'Calculador de Disoluciones'!BE6) -> 3
B7: Volumen de disolución combinada final | C7: 1500 | D7: mL | AA7: =IF('Calculador de Disoluciones'!AA7="","",'Calculador de Disoluciones'!AA7) -> P | AC7: =IF('Calculador de Disoluciones'!AP7="","",'Calculador de Disoluciones'!AP7) -> KH2PO4 | AE7: =IF('Calculador de Disoluciones'!BE7="","",'Calculador de Disoluciones'!BE7) -> (en blanco)
B8: Volumen por pulsación de dosificador | C8: 1.2 | D8: mL/pulsación | AA8: =IF('Calculador de Disoluciones'!AA8="","",'Calculador de Disoluciones'!AA8) -> PO4 | AC8: =IF('Calculador de Disoluciones'!AP8="","",'Calculador de Disoluciones'!AP8) -> KNO3 | AE8: =IF('Calculador de Disoluciones'!BE8="","",'Calculador de Disoluciones'!BE8) -> 4
B9: Volumen de dosis de disolución | C9: =F28 -> 53.84615385 | D9: mL/dosis | AA9: =IF('Calculador de Disoluciones'!AA9="","",'Calculador de Disoluciones'!AA9) -> (en blanco) | AC9: =IF('Calculador de Disoluciones'!AP9="","",'Calculador de Disoluciones'!AP9) -> (en blanco) | AE9: =IF('Calculador de Disoluciones'!BE9="","",'Calculador de Disoluciones'!BE9) -> 
B10: ="Pulsaciones de dosificador de "&TEXT($C$8,"0.0")&"mL" -> Pulsaciones de dosificador de 1.2mL | C10: =C9/$C$8 -> 44.87179487 | D10: pulsaciones/dosis de la disolución combinada. | AA10: =IF('Calculador de Disoluciones'!AA10="","",'Calculador de Disoluciones'!AA10) ->  | AC10: =IF('Calculador de Disoluciones'!AP10="","",'Calculador de Disoluciones'!AP10) ->  | AE10: =IF('Calculador de Disoluciones'!BE10="","",'Calculador de Disoluciones'!BE10) -> 
B11: ="Número de dosis en disolución combinada de "&TEXT($C$7/1000,"0.0")&"L" -> Número de dosis en disolución combinada de 1.5L | C11: =C7/C9 -> 27.85714286 | D11: dosis
B13: OBJETIVOS | C13: NO3 | D13: PO4 | E13: K
B14: Concetración inicial en tanque (mg/L ó ppm)
B15: Objetivo en tanque (mg/L ó ppm) | C15: 10 | D15: 1 | E15: 13
B16: Defecto en tanque (mg/L ó ppm) | C16: =C15-C14 -> 10 | D16: =D15-D14 -> 1 | E16: =E15-E14 -> 13
B17: Defecto en tanque (mg) | C17: =C16*$C$6 -> 2200 | D17: =D16*$C$6 -> 220 | E17: =E16*$C$6 -> 2860
C19: Disolución 1 | D19: Disolución 2 | E19: Disolución 3
B20: Selección | C20: 3 | D20: 1 | E20: 4
A21: 3 | B21: =VLOOKUP("#",DisolucionesPorNumero,$A21,FALSE) -> Fecha | C21: =VLOOKUP(C$20,DisolucionesPorNumero,$A21,FALSE) -> 19-04-2014 | D21: 19-04-2014 | E21: 19-7-2014
A22: 2 | B22: Descripción | C22: Disolución NPK ( 5.0 / 0.5 / 5.0 ) para 110L de agua y dosis de 10.0mL | D22: Disolución N ( 10.0 / 0.0 / 6.3 ) para 220L de agua y dosis de 12.0mL | E22: Disolución NPK ( 0.0 / 0.0 / 13.0 ) para 220L de agua y dosis de 60.0mL
A23: 10 | B23: Composición (resumen) | C23: 89.7g KNO3, 7.9g KH2PO4, 40.2g K2SO4, en 1000mL de agua | D23: 298.9g KNO3, en 1000mL de agua | E23: 106.2g K2SO4, en 1000mL de agua
A24: 4 | B24: Concentración NO3 (mg/mL) | C24: 55 | D24: 183.3333333 | E24: 0
A25: 5 | B25: Concentración PO4 (mg/mL) | C25: 5.5 | D25: 0 | E25: 0
A26: 6 | B26: Concentración K (mg/mL) | C26: 55 | D26: 115.6041162 | E26: 47.66666667
B27: ="Pulsaciones de dosificador de "&TEXT($C$8,"0.0")&"mL" -> Pulsaciones de dosificador de 1.2mL | C27: =C28/$C$8 -> 33.33333333 | D27: =D28/$C$8 -> -1.480297366e-15 | E27: =E28/$C$8 -> 11.53846154 | F27: Total | G27: Check | H27: Concentración AÑADIDA al tanque (mg/L) | I27: Concentración FINAL en tanque (mg/L) | J27: Concentración en disolución (mg/mL)
B28: Volumen de cada disolución en 1 dosis final (mL/dosis) | C28: =TRANSPOSE(MMULT(MINVERSE($C$24:$E$26),TRANSPOSE($C$17:$E$17))) -> 40 | D28: -1.776356839e-15 | E28: 13.84615385 | F28: =SUM(C28:E28) -> 53.84615385
B29: Aporte NO3 (mg) | C29: =C$28*C24 -> 2200 | D29: -3.256654206e-13 | E29: 0 | F29: =SUM(C29:E29) -> 2200 | G29: =IF(F29=C17,"OK","Error") -> OK | H29: =F29/$C$6 -> 10 | I29: =H29+C14 -> 10 | J29: =F29/$C$9 -> 40.85714286
B30: Aporte PO4 (mg) | C30: 220 | D30: 0 | E30: 0 | F30: =SUM(C30:E30) -> 220 | G30: =IF(F30=D17,"OK","Error") -> OK | H30: =F30/$C$6 -> 1 | I30: =H30+D14 -> 1 | J30: =F30/$C$9 -> 4.085714286
B31: Aporte K (mg) | C31: 2200 | D31: -2.053541625e-13 | E31: 660 | F31: =SUM(C31:E31) -> 2860 | G31: =IF(F31=E17,"OK","Error") -> OK | H31: =F31/$C$6 -> 13 | I31: =H31+E14 -> 13 | J31: =F31/$C$9 -> 53.11428571
B32: ="Volumen de cada disolución para "&TEXT($C$7/1000,"0.0")&"L de disolución combinada (mL)" -> Volumen de cada disolución para 1.5L de disolución combinada (mL) | C32: =C28*$C$11 -> 1114.285714 | D32: =D28*$C$11 -> -4.948422624e-14 | E32: =E28*$C$11 -> 385.7142857 | F32: =SUM(C32:E32) -> 1500
A34: Nueva Disolución (esta línea sirve para añadir al registro de disoluciones copiando y pegando como valores)
A35: =MAX(OFFSET(MarkerDisolucionesPorNumeroTopLeft,1,0,50))+1 -> 5 | B35: ="Disolución combinada NPK ( "&TEXT(H29,"0.0")&" / "&TEXT(H30,"0.0")&" / "&TEXT(H31,"0.0")&" ) para "&$C$6&"L de agua y dosis de "&TEXT($C$9,"0.0")&"mL" -> Disolución combinada NPK ( 10.0 / 1.0 / 13.0 ) para 220L de agua y dosis de 53.8mL | C35: =DAY(TODAY())&"-"&MONTH(TODAY())&"-"&YEAR(TODAY()) -> 3-9-2014 | D35: =J29 -> 40.85714286 | E35: =J30 -> 4.085714286 | F35: =J31 -> 53.11428571 | G35: 0 | H35: =$C$6 -> 220 | I35: =$C$9 -> 53.84615385 | J35: =IF(C32>0,TEXT(C32,"0.0")&"mL Disolución#"&C20&", ","")&IF(D32>0,TEXT(D32,"0.0")&"mL Disolución#"&D20&", ","")&IF(E32>0,TEXT(E32,"0.0")&"mL Disolución#"&E20&", ","")&"para "&TEXT($C$7,"0")&"mL de disolución combinada" -> 1114.3mL Disolución#3, 385.7mL Disolución#4, para 1500mL de disolución combinada
A36: # | B36: Descripción | C36: Fecha | D36: Concentración NO3 (mg/mL) | E36: Concentración PO4 (mg/mL) | F36: Concentración K (mg/mL) | G36: Concentración Fe (mg/mL) | H36: Volumen tanque de referencia (L) | I36: Volumen dosis de referencia (mL) | J36: Composición (resumen)

Sheet Calculador de Dosis de Sales
C1: CALCULADORAS DE ABONADO | I1: (Volver a Notas)
C2: www.acuariofiliamadrid.org | I2: (c) carlosterre, 2014
AA3: Principios | AC3: Formulas | AE3: Disoluciones
A4: Calculador de Dosis de Sales NPK | AA4: =IF('Calculador de Disoluciones'!AA4="","",'Calculador de Disoluciones'!AA4) -> K | AC4: =IF('Calculador de Disoluciones'!AP4="","",'Calculador de Disoluciones'!AP4) -> K2HPO4 | AE4: =IF('Calculador de Disoluciones'!BE4="","",'Calculador de Disoluciones'!BE4) -> 1
AA5: =IF('Calculador de Disoluciones'!AA5="","",'Calculador de Disoluciones'!AA5) -> N | AC5: =IF('Calculador de Disoluciones'!AP5="","",'Calculador de Disoluciones'!AP5) -> K2SO4 | AE5: =IF('Calculador de Disoluciones'!BE5="","",'Calculador de Disoluciones'!BE5) -> 2
B6: Volumen de la columna de agua | C6: 220 | D6: L | AA6: =IF('Calculador de Disoluciones'!AA6="","",'Calculador de Disoluciones'!AA6) -> NO3 | AC6: =IF('Calculador de Disoluciones'!AP6="","",'Calculador de Disoluciones'!AP6) -> K3PO4 | AE6: =IF('Calculador de Disoluciones'!BE6="","",'Calculador de Disoluciones'!BE6) -> 3
B7: Volumen de disolución | C7: =C6*1000 -> 220000 | D7: mL ó cc | AA7: =IF('Calculador de Disoluciones'!AA7="","",'Calculador de Disoluciones'!AA7) -> P | AC7: =IF('Calculador de Disoluciones'!AP7="","",'Calculador de Disoluciones'!AP7) -> KH2PO4 | AE7: =IF('Calculador de Disoluciones'!BE7="","",'Calculador de Disoluciones'!BE7) -> (en blanco)
B8: Volumen de dosis de disolución | C8: =C7 -> 220000 | D8: mL | AA8: =IF('Calculador de Disoluciones'!AA8="","",'Calculador de Disoluciones'!AA8) -> PO4 | AC8: =IF('Calculador de Disoluciones'!AP8="","",'Calculador de Disoluciones'!AP8) -> KNO3 | AE8: =IF('Calculador de Disoluciones'!BE8="","",'Calculador de Disoluciones'!BE8) -> 4
B9: Volumen por pulsación de dosificador | C9: =C8 -> 220000 | D9: mL | AA9: =IF('Calculador de Disoluciones'!AA9="","",'Calculador de Disoluciones'!AA9) -> (en blanco) | AC9: =IF('Calculador de Disoluciones'!AP9="","",'Calculador de Disoluciones'!AP9) -> (en blanco) | AE9: =IF('Calculador de Disoluciones'!BE9="","",'Calculador de Disoluciones'!BE9) -> 
B10: ="Pulsaciones de dosificador de "&TEXT(C9,"0.0")&"mL" -> Pulsaciones de dosificador de 220000.0mL | C10: =C8/$C$9 -> 1 | D10: pulsaciones/dosis | AA10: =IF('Calculador de Disoluciones'!AA10="","",'Calculador de Disoluciones'!AA10) ->  | AC10: =IF('Calculador de Disoluciones'!AP10="","",'Calculador de Disoluciones'!AP10) ->  | AE10: =IF('Calculador de Disoluciones'!BE10="","",'Calculador de Disoluciones'!BE10) -> 
B11: Número de dosis preparadas | C11: =C7/C8 -> 1
B13: Principios a aditar con la disolución | C13: NO3 | D13: PO4 | E13: K
B14: Nombre del principio | C14: =VLOOKUP(C$13,MasasPorFormula,2,FALSE) -> Nitrato ión | D14: =VLOOKUP(D$13,MasasPorFormula,2,FALSE) -> Fosfato ión | E14: =VLOOKUP(E$13,MasasPorFormula,2,FALSE) -> Potasio
B15: Concetración inicial en tanque (mg/L ó ppm)
B16: Objetivo en tanque (mg/L ó ppm) | C16: 10 | D16: 1 | E16: 13 | F16: ="Este objetivo se alcanzará añadiendo "&IF(H22>0,TEXT(H22,"0.00")&"g "&B22&", ","")&IF(H23>0,TEXT(H23,"0.00")&"g "&B23&", ","")&IF(H24>0,TEXT(H24,"0.00")&"g "&B24&", ","")&"en "&TEXT($C$6,"0")&"L de agua." -> Este objetivo se alcanzará añadiendo 3.59g KNO3, 0.32g KH2PO4, 3.08g K2SO4, en 220L de agua.
B17: Defecto en tanque (mg) | C17: =(C16-C15)*$C$6 -> 2200 | D17: =(D16-D15)*$C$6 -> 220 | E17: =(E16-E15)*$C$6 -> 2860
B18: Concentración objetivo en disolución (mg/mL) | C18: =C17/$C$8 -> 0.01 | D18: =D17/$C$8 -> 0.001 | E18: =E17/$C$8 -> 0.013
B19: Masa de principio en disolución (g) | C19: =C18*$C$7/1000 -> 2.2 | D19: =D18*$C$7/1000 -> 0.22 | E19: =E18*$C$7/1000 -> 2.86
B21: Compuesto que aporta el elemento | C21: ="% de "&C$13 -> % de NO3 | D21: ="% de "&D$13 -> % de PO4 | E21: ="% de "&E$13 -> % de K | F21: Nombre del compuesto | G21: Masa teórica de compuesto a añadir (g) | H21: Masa de compuesto a añadir al tanque (g) | I21: Concentración de compuesto en disolución (mg/mL) | J21: Alerta de concentración
B22: KNO3 | C22: =IF(ISNA(VLOOKUP(C$13&" ("&$B22&")",PCMasaPorElementoYFormula,10,FALSE)),0,VLOOKUP(C$13&" ("&$B22&")",PCMasaPorElementoYFormula,10,FALSE)) -> 0.6132832591 | D22: 0 | E22: 0.3867167409 | F22: =VLOOKUP($B22,MasasPorFormula,2,FALSE) -> Nitrato potásico | G22: =MMULT(MINVERSE(TRANSPOSE($C$22:$E$24)),TRANSPOSE($C$19:$E$19)) -> 3.587249395 | H22: =MAX(0,G22) -> 3.587249395 | I22: =H22/$C$7*1000 -> 0.01630567907 | J22: =IF(I22>VLOOKUP($B22,MasasPorFormula,4,FALSE),"¡Alerta! Aumenta la dosis de disolución.","") -> 
B23: KH2PO4 | C23: 0 | D23: 0.6978778126 | E23: 0.2873058213 | F23: =VLOOKUP($B23,MasasPorFormula,2,FALSE) -> Fosfato monopotásico | G23: 0.3152414306 | H23: =MAX(0,G23) -> 0.3152414306 | I23: =H23/$C$7*1000 -> 0.001432915594 | J23: =IF(I23>VLOOKUP($B23,MasasPorFormula,4,FALSE),"¡Alerta! Aumenta la dosis de disolución.","") -> 
B24: K2SO4 | C24: 0 | D24: 0 | E24: 0.4487377983 | F24: =VLOOKUP($B24,MasasPorFormula,2,FALSE) -> Sulfato potásico | G24: 3.080150396 | H24: =MAX(0,G24) -> 3.080150396 | I24: =H24/$C$7*1000 -> 0.01400068362 | J24: =IF(I24>VLOOKUP($B24,MasasPorFormula,4,FALSE),"¡Alerta! Aumenta la dosis de disolución.","") -> 
C26: =C$13 -> NO3 | D26: =D$13 -> PO4 | E26: =E$13 -> K
B27: Masa teórica de principio en disolución (g) -check- | C27: =SUMPRODUCT(C22:C24,$G22:$G24) -> 2.2 | D27: =SUMPRODUCT(D22:D24,$G22:$G24) -> 0.22 | E27: =SUMPRODUCT(E22:E24,$G22:$G24) -> 2.86
B28: Masa efectiva de principio en disolución (g) | C28: =SUMPRODUCT(C22:C24,$H22:$H24) -> 2.2 | D28: =SUMPRODUCT(D22:D24,$H22:$H24) -> 0.22 | E28: =SUMPRODUCT(E22:E24,$H22:$H24) -> 2.86
B29: Concentración efectiva en disolución (mg/mL) | C29: =C28*1000/$C$7 -> 0.01 | D29: =D28*1000/$C$7 -> 0.001 | E29: =E28*1000/$C$7 -> 0.013
B30: Concentración AÑADIDA al tanque tras la dosis (mg/L) | C30: =C29*$C$8/$C$6 -> 10 | D30: =D29*$C$8/$C$6 -> 1 | E30: =E29*$C$8/$C$6 -> 13
B31: Concentración FINAL en tanque tras la dosis (mg/L) | C31: =C29*$C$8/$C$6+C$15 -> 10 | D31: =D29*$C$8/$C$6+D$15 -> 1 | E31: =E29*$C$8/$C$6+E$15 -> 13
B32: Alerta de exceso en tanque respecto de objetivo | C32: =IF(C31>C16,"¡Alerta! Exceso de "&TEXT(C31-C16,"0.0")&" mg/L de "&C13,"") ->  | D32: =IF(D31>D16,"¡Alerta! Exceso de "&TEXT(D31-D16,"0.0")&" mg/L de "&D13,"") ->  | E32: =IF(E31>E16,"¡Alerta! Exceso de "&TEXT(E31-E16,"0.0")&" mg/L de "&E13,"") ->  | F32: =IF(C32&D32&E32="","","Las sales seleccionadas proporcionan un exceso respecto del objetivo final deseado en el tanque.") -> 
B35: Esta calculadora dice la cantidad de gramos de las sales seleccionadas que se debe añadir al tanque para lograr una determinada concentración objetivo. Toma como datos: a) el volumen de la columna de agua sobre la que trabajar; b) las concentraciones iniciales en el tanque; y c) las concentraciones objetivo de ión nitrato (NO3), ión fosfato (PO4) y potasio (K) para el tanque. Como resultado proporciona la cantidad de cada sal que se debe añadir al tanque directamente (se recomienda disolver previamente en una menor cantidad de agua caliente y no añadir los critales directamente al tanque).

Sheet Nutrientes
D1: CALCULADORAS DE ABONADO | F1: (Volver a Notas)
D2: www.acuariofiliamadrid.org | F2: (c) carlosterre, 2014
A4: Información sobre Nutrientes
B6: Macronutrientes ("NPK")
B8: PRIMARIOS | C8: Nitrógeno (N), normalmente en forma de ión nitrato (NO3) aunque las plantas pueden aprovecharlo en otras formas como ión nitrito (NO2) o amonio.
C9: Fósforo (P), normalmente en forma de ión fosfato (PO4).
C10: Potasio (K)
B12: SECUNDARIOS | C12: Azufre (S)
C13: Calcio (Ca)
C14: Magnesio (Mg)
B16: Micronutrientes o Elementos Traza
C18: Hierro (Fe)
C19: Manganeso (Mn)
C20: Cobre (Cu)
C21: Molibdeno (Mb)
C22: Zinc (Zn)
B24: Cada elemento tiene una función específica y repercute de manera visible en la salud de las plantas. La siguiente tabla proporciona una guía simple.
B26: Nutriente | C26: Función | D26: Su deficiencia provoca … | E26: Su exceso provoca …
B27: Nitrógeno (N) | C27: Crecimiento de las hojas y tallos | D27: Amarilleo de las hojas de más edad, las hojas inferiores; retraso o atrofia del crecimiento
B28: Fósforo (P) | C28: Desarrollo y crecimiento de las raíces, la floración, la transferencia de la energía almacenada dentro de la planta | D28: Coloración violácea, raíces atrofiadas.
B29: Potasio (K) | C29: Regula la absorción de nutrientes por la planta, promueve la floración, y la resistencia a las enfermedades. Las plantas en general necesitan menos potasio en la floración, excesivo K disminuye la producción de fruta. | D29: Crecimiento irregular, bordes marrones de las hojas.
B30: Azufre (S) | C30: Síntesis en plantas de proteínas y vitaminas. Ayuda a la planta a utilizar nitrógeno y potasio eficazmente. También reduce el valor del pH (para agua alcalina o dura). | D30: Las plantas que son pequeñas y delgadas, con tallos cortos y delgados. Crecimiento retardado y la madurez a menudo se retrasa. En la mayoría de las plantas, las hojas jóvenes se vuelven verdes claro o amarillento, con nervios de color más claro aún. Afecta a las hojas jóvenes porque el azufre y el calcio se mueven poco en el tejido de la planta. El crecimiento es lento y las hojas tienden a ser frágiles y crecer más estrechas de lo normal.
B31: Calcio (Ca) | C31: El calcio juega un papel importante para el proceso de crecimiento de las plantas. Regula la división de las células y contribuye a la estabilidad de la planta. Así que una planta siempre debe tener suficiente cantidad de calcio. | D31: Manchas amarillas / marrones en las hojas más viejas, que pueden estar rodeadas por un borde marrón bien delimitado.
B32: Magnesio (Mg) | C32: Es esencial para la fotosíntesis y la transferencia de energía. Es un componente básico para la clorofila (hoja verde). | D32: Will breakdown the medium-old leaves under the flowering top to support young parts of the plant. Descompondrá las hojas de edad media durante la floración para apoyar a las partes jóvenes de la planta. Esta descomposición es visible en forma de manchas marrones como oxidadas y/o manchas difusas amarillas entre los nervios.
B33: Hierro (Fe) | C33: Un catalizador clave en la producción de clorofila. Un pH alto impide que las plantas absorvan el Fe. El hierro es difícil de aborver para las plantas y se mueve lentamente en la planta. | D33: Vuelve las hojas nuevas de color amarillo pálido o blanco, mientras que los nervios permanecen verdes.
B34: Manganeso (Mn) | C34: Trabaja con enzimas de la planta para reducir los nitratos antes de producir las proteínas. | D34: Vuelve las hojas jóvenes de un color amarillo o marrón moteado.
B35: Boron (B) | C35: Necesario para la división celular y la formación de proteínas, también para la polinización y producción de semillas. | D35: Crecimiento relentizado.
B36: Cobre (Cu) | C36: Catalizador para varias enzimas. | D36: Marchita los nuevos brotes y provoca un crecimiento irregular. | E36: El exceso de Cu causa la muerte repentina de las plantas.
B37: Molibdeno (Mb) | C37: Ayuda a proteínas de formulario, ayuda a fijar el nitrógeno del aire. | D37: Hace palidecer las hojas, con bordes de aspecto chamuscado y hace crecer de manera irregular la planta.
B38: Zinc (Zn) | C38: Un catalizador: debe estar presente en cantidades ínfimas para el crecimiento vegetal. | D38: Produce retraso del crecimiento (reducción del crecimiento), color amarillento y rizado de las hojas pequeñas.

Sheet Sales y Elementos
E1: CALCULADORAS DE ABONADO | K1: (Volver a Notas)
E2: www.acuariofiliamadrid.org | K2: (c) carlosterre, 2014
A4: Base de Datos de Sales y Elementos/Compuestos Nutrientes
B6: PCMasaPorElementoYFormula | M6: MasasPorFormula
B7: 1 | C7: 2 | D7: 3 | E7: 4 | F7: 5 | G7: 6 | H7: 7 | I7: 8 | J7: 9 | K7: 10 | M7: 1 | N7: 2 | O7: 3 | P7: 4
B8: Elemento y Fórmula | C8: Fórmula | D8: Nombre de fórmula | E8: Masa molecular (u/molécula) | F8: Elemento o compuesto | G8: Nombre de elemento o compuesto | H8: Masa de elemento o compuesto (u/atomo o u/molécula) | I8: Unidades de elemento o compuesto (unidad/mol.) | J8: Masa total de elemento (u/molécula) | K8: Masa de elemento (% de masa molecular) | M8: Fórmula | N8: Nombre | O8: Masa (u/molecula ó u/átomo) | P8: Masa de saturación en condiciones normales (g/L)
B9: =F9&" ("&C9&")" -> N (K2SO4) | C9: K2SO4 | D9: =VLOOKUP($C9,MasasPorFormula,2,FALSE) -> Sulfato potásico | E9: =VLOOKUP($C9,MasasPorFormula,3,FALSE) -> 174.259 | F9: N | G9: =VLOOKUP($F9,MasasPorFormula,2,FALSE) -> Nitrógeno | H9: =VLOOKUP($F9,MasasPorFormula,3,FALSE) -> 14.00674 | I9: 0 | J9: =H9*I9 -> 0 | K9: =J9/E9 -> 0 | M9: K2SO4 | N9: Sulfato potásico | O9: 174.259 | P9: 120
B10: P (K2SO4) | C10: K2SO4 | D10: Sulfato potásico | E10: 174.259 | F10: P | G10: Fósforo | H10: 30.973762 | I10: 0 | J10: 0 | K10: 0 | M10: KNO3 | N10: Nitrato potásico | O10: 101.1032 | P10: 360
B11: K (K2SO4) | C11: K2SO4 | D11: Sulfato potásico | E11: 174.259 | F11: K | G11: Potasio | H11: 39.0983 | I11: 2 | J11: 78.1966 | K11: 0.4487377983 | M11: KH2PO4 | N11: Fosfato monopotásico | O11: 136.086 | P11: 220
B12: N (KNO3) | C12: KNO3 | D12: Nitrato potásico | E12: 101.1032 | F12: N | G12: Nitrógeno | H12: 14.00674 | I12: 1 | J12: 14.00674 | K12: 0.1385390373 | M12: N | N12: Nitrógeno | O12: 14.00674
B13: P (KNO3) | C13: KNO3 | D13: Nitrato potásico | E13: 101.1032 | F13: P | G13: Fósforo | H13: 30.973762 | I13: 0 | J13: 0 | K13: 0 | M13: P | N13: Fósforo | O13: 30.973762
B14: K (KNO3) | C14: KNO3 | D14: Nitrato potásico | E14: 101.1032 | F14: K | G14: Potasio | H14: 39.0983 | I14: 1 | J14: 39.0983 | K14: 0.3867167409 | M14: K | N14: Potasio | O14: 39.0983
B15: N (KH2PO4) | C15: KH2PO4 | D15: Fosfato monopotásico | E15: 136.086 | F15: N | G15: Nitrógeno | H15: 14.00674 | I15: 0 | J15: 0 | K15: 0 | M15: NO3 | N15: Nitrato ión | O15: 62.0049
B16: P (KH2PO4) | C16: KH2PO4 | D16: Fosfato monopotásico | E16: 136.086 | F16: P | G16: Fósforo | H16: 30.973762 | I16: 1 | J16: 30.973762 | K16: 0.2276043237 | M16: PO4 | N16: Fosfato ión | O16: 94.9714
B17: K (KH2PO4) | C17: KH2PO4 | D17: Fosfato monopotásico | E17: 136.086 | F17: K | G17: Potasio | H17: 39.0983 | I17: 1 | J17: 39.0983 | K17: 0.2873058213 | M17: K2HPO4 | N17: Fosfato dipotásico | O17: 174.17605
B18: NO3 (KNO3) | C18: KNO3 | D18: Nitrato potásico | E18: 101.1032 | F18: NO3 | G18: Nitrato ión | H18: 62.0049 | I18: 1 | J18: 62.0049 | K18: 0.6132832591 | M18: K3PO4 | N18: Fosfato tripotásico | O18: 212.26641
B19: PO4 (KH2PO4) | C19: KH2PO4 | D19: Fosfato monopotásico | E19: 136.086 | F19: PO4 | G19: Fosfato ión | H19: 94.9714 | I19: 1 | J19: 94.9714 | K19: 0.6978778126
B20: PO4 (K2HPO4) | C20: K2HPO4 | D20: Fosfato dipotásico | E20: 174.17605 | F20: PO4 | G20: Fosfato ión | H20: 94.9714 | I20: 1 | J20: 94.9714 | K20: 0.5452609587
B21: K (K2HPO4) | C21: K2HPO4 | D21: Fosfato dipotásico | E21: 174.17605 | F21: K | G21: Potasio | H21: 39.0983 | I21: 2 | J21: 78.1966 | K21: 0.4489515062
B22: PO4 (K3PO4) | C22: K3PO4 | D22: Fosfato tripotásico | E22: 212.26641 | F22: PO4 | G22: Fosfato ión | H22: 94.9714 | I22: 1 | J22: 94.9714 | K22: 0.4474160561
B23: K (K3PO4) | C23: K3PO4 | D23: Fosfato tripotásico | E23: 212.26641 | F23: K | G23: Potasio | H23: 39.0983 | I23: 3 | J23: 117.2949 | K23: 0.5525834257
B24: ()
B25: ()
B26: ()
B27: ()
B28: ()
B29: ()
B30: ()
B31: ()
B32: ()
B33: ()
B34: ()
B35: ()
B36: ()
B37: ()
B38: ()
B39: ()
B40: ()
B41: =F41&" ("&C41&")" -> () | D41: =VLOOKUP($C41,MasasPorFormula,2,FALSE) ->  | E41: =VLOOKUP($C41,MasasPorFormula,3,FALSE) ->  | H41: =VLOOKUP($F41,MasasPorFormula,3,FALSE) ->  | J41: =H41*I41 ->  | K41: =J41/E41 -> 
B42: ()
B43: ()
B44: ()
B45: ()
B46: ()
B47: ()
B48: ()
B49: ()
B50: ()
B51: ()
B52: ()
B53: ()
B54: ()
B55: ()
B56: ()
B57: ()
B58: ()
B59: ()
B60: ()
B61: ()
B62: ()
B63: ()
B64: ()
B65: ()
B66: ()
B67: ()
B68: ()
B69: ()
B70: ()
B71: ()
B72: ()
B73: =F73&" ("&C73&")" -> () | D73: =VLOOKUP($C73,MasasPorFormula,2,FALSE) ->  | E73: =VLOOKUP($C73,MasasPorFormula,3,FALSE) ->  | G73: =VLOOKUP($F73,MasasPorFormula,2,FALSE) ->  | H73: =VLOOKUP($F73,MasasPorFormula,3,FALSE) ->  | J73: =H73*I73 ->  | K73: =J73/E73 -> 
B74: ()
B75: ()
B76: ()
B77: ()
B78: ()
B79: ()
B80: ()
B81: ()
B82: ()
B83: ()
B84: ()
B85: ()
B86: ()
B87: ()
B88: ()
B89: ()
B90: ()
B91: ()
B92: ()
B93: ()
B94: ()
B95: ()
B96: ()
B97: ()
B98: ()
B99: ()
B100: ()
B101: ()
B102: ()
B103: ()
B104: ()
B105: =F105&" ("&C105&")" -> () | D105: =VLOOKUP($C105,MasasPorFormula,2,FALSE) ->  | E105: =VLOOKUP($C105,MasasPorFormula,3,FALSE) ->  | H105: =VLOOKUP($F105,MasasPorFormula,3,FALSE) ->  | J105: =H105*I105 ->  | K105: =J105/E105 -> 
B106: ()
B107: ()
B108: ()
B109: ()
B110: ()
B111: ()
B112: ()
B113: ()
B114: ()
B115: ()
B116: ()
B117: ()
B118: ()
B119: ()
B120: ()
B121: ()
B122: ()
B123: ()
B124: ()
B125: ()
B126: ()
B127: ()
B128: ()
B129: ()
B130: ()
B131: ()
B132: ()
B133: ()
B134: ()
B135: ()
B136: ()
B137: =F137&" ("&C137&")" -> () | D137: =VLOOKUP($C137,MasasPorFormula,2,FALSE) ->  | E137: =VLOOKUP($C137,MasasPorFormula,3,FALSE) ->  | G137: =VLOOKUP($F137,MasasPorFormula,2,FALSE) ->  | H137: =VLOOKUP($F137,MasasPorFormula,3,FALSE) ->  | J137: =H137*I137 ->  | K137: =J137/E137 -> 
B138: ()
B139: ()
B140: ()
B141: ()
B142: ()
B143: ()
B144: ()
B145: <eot> | M145: <eot>

Sheet Control de Consumos Netos (hidden)
D1: CALCULADORAS DE ABONADO
D2: www.acuariofiliamadrid.org | K2: (c) carlosterre, 2014
A4: Control de Abonado
B6: Nombre del acuario | C6: Comunitario 260L
B7: Columna agua | C7: 220 | D7: L
B9: Ultima analítica
B10: Fecha | C10: 2014-04-26 | D10: Umbral Min | E10: Umbral Max
B11: Temperatura (ºC) | C11: nd | D11: 24 | E11: 26
B12: pH (·) | C12: nd | D12: 6 | E12: 7
B13: gH (dureza total) (ºdH) | C13: nd | D13: 5 | E13: 15
B14: kH (dureza carbonatos) (ºdH) | C14: nd | D14: 5 | E14: 10
B15: NO2 (nitritos) (mg/L) | C15: nd | D15: 0 | E15: 0.5
B16: NO3 (nitratos) (mg/L) | C16: 8 | D16: 10 | E16: 50
B17: PO4 (mg/L) | C17: 1 | D17: 0 | E17: 1
B18: Fe (mg/L) | C18: nd | D18: 0.1 | E18: 0.25
B19: Tipo test | C19: Gotas Sera
B21: Analíticas
B22: Fecha | C22: 2014-03-24 | D22: 2014-04-01 | E22: 2014-04-06 | F22: 2014-04-12 | G22: 2014-04-18 | H22: 2014-04-26 | I22: 2014-05-02
B23: Días desde última analítica | D23: =IF(D22="","",D22-C22) -> 8 | E23: 5 | F23: 6 | G23: 6 | H23: 8 | I23: 6
B24: Temperatura (ºC) | C24: 26 | D24: 26 | E24: 25.7 | F24: 25.6
B25: pH (·) | C25: 6 | D25: 7 | E25: 6.5 | G25: 7
B26: gH (dureza total) (ºdH) | C26: 7.5 | D26: >6 | G26: >6
B27: kH (dureza carbonatos) (ºdH) | C27: 5 | D27: 6 | G27: 6
B28: NO2 (nitritos) (mg/L) | C28: 0 | D28: 0 | E28: 0 | G28: 0
A29: 1 | B29: NO3 (nitratos) (mg/L) | C29: 0 | D29: 10 | E29: 10 | F29: 0 | G29: 0 | H29: 8
A30: 2 | B30: PO4 (mg/L) | C30: 0.3 | E30: 1 | F30: 1 | G30: 1 | H30: 1
A31: 3 | B31: Fe (mg/L) | C31: 0.05 | E31: 0 | F31: 0.18 | G31: 0
B32: Tipo test | C32: Gotas Sera | D32: Tiras Sera | E32: Gotas Sera | F32: Gotas Sera | G32: Gotas Sera | H32: Gotas Sera
B34: Consumos netos | C34: =IF(C$22="","",C$22) -> 2014-03-24 | D34: =IF(D$22="","",D$22) -> 2014-04-01 | E34: 2014-04-06 | F34: 2014-04-12 | G34: 2014-04-18 | H34: 2014-04-26 | I34: 2014-05-02
A35: 1 | B35: =OFFSET(B$28,$A35,0) -> NO3 (nitratos) (mg/L)
B36: Analítica disponible | C36: =IF(NOT(C$22=""),IF(OFFSET(C$28,$A35,0)="",FALSE,TRUE),"") -> TRUE | D36: TRUE | E36: TRUE | F36: TRUE | G36: TRUE | H36: TRUE | I36: FALSE
B37: Días desde última analítica | D37: =IF(D$22="","", IF(C36,D$23,C37+D$23)) -> 8 | E37: 5 | F37: 6 | G37: 6 | H37: 8 | I37: 6
B38: Valor actual | D38: =IF(D$22="","", IF(D36,OFFSET(D$28,$A35,0),"")) -> 10 | E38: =IF(E$22="","", IF(E36,OFFSET(E$28,$A35,0),"")) -> 10 | F38: 0 | G38: 0 | H38: 8
B39: Valor anterior | D39: =IF(D$22="","", OFFSET($B$28,$A35, MATCH(D$22-D37,$C$22:D$22,0))) -> 0 | E39: =IF(E$22="","", OFFSET($B$28,$A35, MATCH(E$22-E37,$C$22:E$22,0))) -> 10 | F39: =IF(F$22="","", OFFSET($B$28,$A35, MATCH(F$22-F37,$C$22:F$22,0))) -> 10 | G39: =IF(G$22="","", OFFSET($B$28,$A35, MATCH(G$22-G37,$C$22:G$22,0))) -> 0 | H39: =IF(H$22="","", OFFSET($B$28,$A35, MATCH(H$22-H37,$C$22:H$22,0))) -> 0 | I39: =IF(I$22="","", OFFSET($B$28,$A35, MATCH(I$22-I37,$C$22:I$22,0))) -> 8 | J39: =IF(J$22="","", OFFSET($B$28,$A35, MATCH(J$22-J37,$C$22:J$22,0))) ->  | K39: =IF(K$22="","", OFFSET($B$28,$A35, MATCH(K$22-K37,$C$22:K$22,0))) ->  | L39: =IF(L$22="","", OFFSET($B$28,$A35, MATCH(L$22-L37,$C$22:L$22,0))) ->  | M39: =IF(M$22="","", OFFSET($B$28,$A35, MATCH(M$22-M37,$C$22:M$22,0))) ->  | N39: =IF(N$22="","", OFFSET($B$28,$A35, MATCH(N$22-N37,$C$22:N$22,0))) ->  | O39: =IF(O$22="","", OFFSET($B$28,$A35, MATCH(O$22-O37,$C$22:O$22,0))) ->  | P39: =IF(P$22="","", OFFSET($B$28,$A35, MATCH(P$22-P37,$C$22:P$22,0))) -> 
B40: Abonado desde última analítica (mg/L) | G40: 10 | H40: 2
B41: ="Consumo neto "&OFFSET($B$28,A35,0) -> Consumo neto NO3 (nitratos) (mg/L) | D41: =IF(D$22="","",IF(D36,D39+C40-D38,"")) -> -10 | E41: =IF(E$22="","",IF(E36,E39+D40-E38,"")) -> 0 | F41: 10 | G41: 0 | H41: 2
B42: Consumo neto diario (mg/(L·día)) | D42: =IF(D$22="","",IF(D36,D41/D37,"")) -> -1.25 | E42: =IF(E$22="","",IF(E36,E41/E37,"")) -> 0 | F42: 1.666666667 | G42: 0 | H42: 0.25
A43: 2 | B43: =OFFSET(B$28,$A43,0) -> PO4 (mg/L)
B44: Analítica disponible | C44: =IF(NOT(C$22=""),IF(OFFSET(C$28,$A43,0)="",FALSE,TRUE),"") -> TRUE | D44: FALSE | E44: TRUE | F44: TRUE | G44: TRUE | H44: TRUE | I44: FALSE
B45: Días desde última analítica | D45: =IF(D$22="","", IF(C44,D$23,C45+D$23)) -> 8 | E45: 13 | F45: 6 | G45: 6 | H45: 8 | I45: 6
B46: Valor actual | D46: =IF(D$22="","",IF(D44,OFFSET(D$28,$A43,0),"")) ->  | E46: =IF(E$22="","",IF(E44,OFFSET(E$28,$A43,0),"")) -> 1 | F46: 1 | G46: 1 | H46: 1
B47: Valor anterior | D47: =IF(D$22="","", OFFSET($B$28,$A43, MATCH(D$22-D45,$C$22:D$22,0))) -> 0.3 | E47: =IF(E$22="","", OFFSET($B$28,$A43, MATCH(E$22-E45,$C$22:E$22,0))) -> 0.3 | F47: =IF(F$22="","", OFFSET($B$28,$A43, MATCH(F$22-F45,$C$22:F$22,0))) -> 1 | G47: =IF(G$22="","", OFFSET($B$28,$A43, MATCH(G$22-G45,$C$22:G$22,0))) -> 1 | H47: =IF(H$22="","", OFFSET($B$28,$A43, MATCH(H$22-H45,$C$22:H$22,0))) -> 1 | I47: =IF(I$22="","", OFFSET($B$28,$A43, MATCH(I$22-I45,$C$22:I$22,0))) -> 1 | J47: =IF(J$22="","", OFFSET($B$28,$A43, MATCH(J$22-J45,$C$22:J$22,0))) ->  | K47: =IF(K$22="","", OFFSET($B$28,$A43, MATCH(K$22-K45,$C$22:K$22,0))) ->  | L47: =IF(L$22="","", OFFSET($B$28,$A43, MATCH(L$22-L45,$C$22:L$22,0))) ->  | M47: =IF(M$22="","", OFFSET($B$28,$A43, MATCH(M$22-M45,$C$22:M$22,0))) ->  | N47: =IF(N$22="","", OFFSET($B$28,$A43, MATCH(N$22-N45,$C$22:N$22,0))) ->  | O47: =IF(O$22="","", OFFSET($B$28,$A43, MATCH(O$22-O45,$C$22:O$22,0))) ->  | P47: =IF(P$22="","", OFFSET($B$28,$A43, MATCH(P$22-P45,$C$22:P$22,0))) -> 
B48: Abonado desde última analítica (mg/L)
B49: ="Consumo neto "&OFFSET($B$28,A43,0) -> Consumo neto PO4 (mg/L) | D49: =IF(D$22="","",IF(D44,D47+C48-D46,"")) ->  | E49: =IF(E$22="","",IF(E44,E47+D48-E46,"")) -> -0.7 | F49: 0 | G49: 0 | H49: 0
B50: Consumo neto diario (mg/(L·día)) | D50: =IF(D$22="","",IF(D44,D49/D45,"")) ->  | E50: =IF(E$22="","",IF(E44,E49/E45,"")) -> -0.05384615385 | F50: 0 | G50: 0 | H50: 0
A51: 3 | B51: =OFFSET(B$28,$A51,0) -> Fe (mg/L)
B52: Analítica disponible | C52: =IF(NOT(C$22=""),IF(OFFSET(C$28,$A51,0)="",FALSE,TRUE),"") -> TRUE | D52: FALSE | E52: TRUE | F52: TRUE | G52: TRUE | H52: FALSE | I52: FALSE
B53: Días desde última analítica | D53: =IF(D$22="","", IF(C52,D$23,C53+D$23)) -> 8 | E53: 13 | F53: 6 | G53: 6 | H53: 8 | I53: 14
B54: Valor actual | D54: =IF(D$22="","",IF(D52,OFFSET(D$28,$A51,0),"")) ->  | E54: =IF(E$22="","",IF(E52,OFFSET(E$28,$A51,0),"")) -> 0 | F54: 0.18 | G54: 0
B55: Valor anterior | D55: =IF(D$22="","", OFFSET($B$28,$A51, MATCH(D$22-D53,$C$22:D$22,0))) -> 0.05 | E55: =IF(E$22="","", OFFSET($B$28,$A51, MATCH(E$22-E53,$C$22:E$22,0))) -> 0.05 | F55: =IF(F$22="","", OFFSET($B$28,$A51, MATCH(F$22-F53,$C$22:F$22,0))) -> 0 | G55: =IF(G$22="","", OFFSET($B$28,$A51, MATCH(G$22-G53,$C$22:G$22,0))) -> 0.18 | H55: =IF(H$22="","", OFFSET($B$28,$A51, MATCH(H$22-H53,$C$22:H$22,0))) -> 0 | I55: =IF(I$22="","", OFFSET($B$28,$A51, MATCH(I$22-I53,$C$22:I$22,0))) -> 0 | J55: =IF(J$22="","", OFFSET($B$28,$A51, MATCH(J$22-J53,$C$22:J$22,0))) ->  | K55: =IF(K$22="","", OFFSET($B$28,$A51, MATCH(K$22-K53,$C$22:K$22,0))) ->  | L55: =IF(L$22="","", OFFSET($B$28,$A51, MATCH(L$22-L53,$C$22:L$22,0))) ->  | M55: =IF(M$22="","", OFFSET($B$28,$A51, MATCH(M$22-M53,$C$22:M$22,0))) ->  | N55: =IF(N$22="","", OFFSET($B$28,$A51, MATCH(N$22-N53,$C$22:N$22,0))) ->  | O55: =IF(O$22="","", OFFSET($B$28,$A51, MATCH(O$22-O53,$C$22:O$22,0))) ->  | P55: =IF(P$22="","", OFFSET($B$28,$A51, MATCH(P$22-P53,$C$22:P$22,0))) -> 
B56: Abonado desde última analítica (mg/L)
B57: ="Consumo neto "&OFFSET($B$28,A51,0) -> Consumo neto Fe (mg/L) | D57: =IF(D$22="","",IF(D52,D55+C56-D54,"")) ->  | E57: =IF(E$22="","",IF(E52,E55+D56-E54,"")) -> 0.05 | F57: -0.18 | G57: 0.18
B58: Consumo neto diario (mg/(L·día)) | D58: =IF(D$22="","",IF(D52,D57/D53,"")) ->  | E58: 0.003846153846 | F58: -0.03 | G58: 0.03
H60: 2/0/13 | I60: 5/0/13
